[Event "Sverigemastarklassen 2025"]
[Site "Uppsala, Sweden"]
[Date "2025.06.30"]
[Round "3.2"]
[White "Lokander, Martin"]
[Black "Blomqvist, Erik"]
[Result "0-1"]
[TimeControl "90 min for 40 move + 30 min with an increment of 30 sec starting move 1"]
[WhiteTitle "IM"]
[BlackTitle "GM"]
[WhiteFideId "1709569"]
[BlackFideId "1709437"]
[WhiteElo "2446"]
[BlackElo "2448"]

1. d4 {[%clk 01:30:57]} {[%emt 00:00:02]} d5 {[%clk 01:30:50]} {[%emt
00:00:10]} 2. c4 {[%clk 01:31:04]} {[%emt 00:00:24]} c6 {[%clk 01:31:14]}
{[%emt 00:00:05]} 3. Nf3 {[%clk 01:29:42]} {[%emt 00:01:52]} Nf6 {[%clk
01:31:36]} {[%emt 00:00:08]} 4. Nc3 {[%clk 01:29:38]} {[%emt 00:00:35]} dxc4
{[%clk 01:31:29]} {[%emt 00:00:36]} 5. a4 {[%clk 01:29:28]} {[%emt 00:00:40]}
Bf5 {[%clk 01:31:51]} {[%emt 00:00:07]} 6. e3 {[%clk 01:26:38]} {[%emt
00:03:21]} e6 {[%clk 01:31:42]} {[%emt 00:00:39]} 7. Bxc4 {[%clk 01:26:24]}
{[%emt 00:00:43]} Bb4 {[%clk 01:32:04]} {[%emt 00:00:08]} 8. O-O {[%clk
01:26:03]} {[%emt 00:00:51]} O-O {[%clk 01:32:26]} {[%emt 00:00:08]} 9. Nh4
{[%clk 01:22:56]} {[%emt 00:03:38]} Nbd7 {[%clk 01:31:15]} {[%emt 00:01:40]} 10.
Nxf5 {[%clk 01:23:00]} {[%emt 00:00:26]} exf5 {[%clk 01:31:40]} {[%emt
00:00:06]} 11. Qc2 {[%clk 01:23:13]} {[%emt 00:00:16]} g6 {[%clk 01:31:54]}
{[%emt 00:00:16]} 12. f3 {[%clk 01:22:24]} {[%emt 00:01:19]} Rc8 {[%clk
01:31:32]} {[%emt 00:00:52]} 13. Kh1 {[%clk 01:19:57]} {[%emt 00:02:56]} c5
{[%clk 01:30:45]} {[%emt 00:01:18]} 14. Nb5 {[%clk 01:19:56]} {[%emt 00:00:31]}
Qb6 {[%clk 01:17:25]} {[%emt 00:13:49]} 15. d5 {[%clk 01:20:10]} {[%emt
00:00:18]} a6 {[%clk 01:16:05]} {[%emt 00:01:50]} 16. Nc3 {[%clk 01:19:49]}
{[%emt 00:00:50]} Rfe8 {[%clk 01:10:31]} {[%emt 00:06:04]} 17. e4 {[%clk
01:15:19]} {[%emt 00:05:01]} Bxc3 {[%clk 01:07:19]} {[%emt 00:03:41]} 18. Qxc3
{[%clk 01:07:48]} {[%emt 00:08:01]} fxe4 {[%clk 01:07:17]} {[%emt 00:00:32]} 19.
fxe4 {[%clk 00:56:17]} {[%emt 00:12:01]} Nxe4 {[%clk 01:02:13]} {[%emt
00:05:34]} 20. Qf3 {[%clk 00:50:58]} {[%emt 00:05:49]} Nd6 {[%clk 00:53:14]}
{[%emt 00:09:28]} 21. b3 {[%clk 00:46:11]} {[%emt 00:05:19]} Re4 {[%clk
00:32:37]} {[%emt 00:21:06]} 22. Bf4 {[%clk 00:26:33]} {[%emt 00:20:09]} Ne5
{[%clk 00:31:40]} {[%emt 00:01:26]} 23. Qg3 {[%clk 00:21:36]} {[%emt 00:05:27]}
Re8 {[%clk 00:30:45]} {[%emt 00:01:24]} 24. a5 {[%clk 00:21:02]} {[%emt
00:01:05]} Qd8 {[%clk 00:28:33]} {[%emt 00:02:41]} 25. h3 {[%clk 00:11:09]}
{[%emt 00:10:23]} Nf5 {[%clk 00:23:36]} {[%emt 00:05:28]} 26. Qc3 {[%clk
00:09:03]} {[%emt 00:02:37]} Qh4 {[%clk 00:21:49]} {[%emt 00:02:16]} 27. Bh2
{[%clk 00:06:56]} {[%emt 00:02:36]} Re3 {[%clk 00:18:18]} {[%emt 00:04:02]} 28.
Qb2 {[%clk 00:06:37]} {[%emt 00:00:49]} Nxc4 {[%clk 00:13:37]} {[%emt
00:05:10]} 29. bxc4 {[%clk 00:07:04]} {[%emt 00:00:04]} Re2 {[%clk 00:13:59]}
{[%emt 00:00:09]} 30. Qxb7 {[%clk 00:05:25]} {[%emt 00:02:08]} Rxg2 {[%clk
00:13:24]} {[%emt 00:01:05]} 31. Rf3 {[%clk 00:02:27]} {[%emt 00:03:28]} Re1+
{[%clk 00:10:31]} {[%emt 00:03:22]} 32. Kxg2 {[%clk 00:02:01]} {[%emt
00:00:57]} Qg5+ {[%clk 00:10:52]} {[%emt 00:00:08]} 33. Bg3 {[%clk 00:02:22]}
{[%emt 00:00:10]} Nh4+ {[%clk 00:11:09]} {[%emt 00:00:13]} 0-1

[Event "Sverigemastarklassen 2025"]
[Site "Uppsala, Sweden"]
[Date "2025.06.30"]
[Round "3.3"]
[White "Falkevall, Axel"]
[Black "Hector, Jonny"]
[Result "1/2-1/2"]
[TimeControl "90 min for 40 move + 30 min with an increment of 30 sec starting move 1"]
[WhiteTitle "FM"]
[BlackTitle "GM"]
[WhiteFideId "1735560"]
[BlackFideId "1700090"]
[WhiteElo "2372"]
[BlackElo "2430"]

1. e4 {[%clk 01:30:54]} {[%emt 00:00:05]} e5 {[%clk 01:30:55]} {[%emt
00:00:05]} 2. Nf3 {[%clk 01:31:17]} {[%emt 00:00:08]} Nc6 {[%clk 01:31:11]}
{[%emt 00:00:13]} 3. Bb5 {[%clk 01:31:24]} {[%emt 00:00:24]} a6 {[%clk
01:31:17]} {[%emt 00:00:25]} 4. Ba4 {[%clk 01:31:48]} {[%emt 00:00:05]} Bc5
{[%clk 01:31:34]} {[%emt 00:00:12]} 5. c3 {[%clk 01:31:16]} {[%emt 00:01:03]}
Nge7 {[%clk 01:30:28]} {[%emt 00:01:34]} 6. d4 {[%clk 01:29:12]} {[%emt
00:02:36]} exd4 {[%clk 01:30:37]} {[%emt 00:00:21]} 7. cxd4 {[%clk 01:29:38]}
{[%emt 00:00:04]} Bb4+ {[%clk 01:30:53]} {[%emt 00:00:13]} 8. Nc3 {[%clk
01:27:12]} {[%emt 00:02:55]} d5 {[%clk 01:30:39]} {[%emt 00:00:42]} 9. O-O
{[%clk 01:25:11]} {[%emt 00:02:33]} dxe4 {[%clk 01:26:32]} {[%emt 00:04:37]} 10.
Nxe4 {[%clk 01:25:23]} {[%emt 00:00:18]} O-O {[%clk 01:22:56]} {[%emt
00:04:05]} 11. a3 {[%clk 01:17:57]} {[%emt 00:07:58]} Ba5 {[%clk 01:21:20]}
{[%emt 00:02:05]} 12. h3 {[%clk 01:04:23]} {[%emt 00:14:04]} Bb6 {[%clk
01:17:13]} {[%emt 00:04:36]} 13. Be3 {[%clk 00:54:21]} {[%emt 00:10:32]} f5
{[%clk 01:13:23]} {[%emt 00:04:20]} 14. Bb3+ {[%clk 00:47:12]} {[%emt
00:07:40]} Kh8 {[%clk 01:13:23]} {[%emt 00:00:29]} 15. Neg5 {[%clk 00:45:23]}
{[%emt 00:02:20]} Nd5 {[%clk 00:53:26]} {[%emt 00:20:27]} 16. Ne5 {[%clk
00:33:10]} {[%emt 00:12:44]} Nxe5 {[%clk 00:53:31]} {[%emt 00:00:23]} 17. dxe5
{[%clk 00:33:31]} {[%emt 00:00:10]} Bxe3 {[%clk 00:53:28]} {[%emt 00:00:33]} 18.
fxe3 {[%clk 00:33:39]} {[%emt 00:00:23]} Qxg5 {[%clk 00:52:48]} {[%emt
00:01:08]} 19. Qxd5 {[%clk 00:33:50]} {[%emt 00:00:20]} Re8 {[%clk 00:41:41]}
{[%emt 00:11:37]} 20. Qf7 {[%clk 00:28:36]} {[%emt 00:05:44]} Bd7 {[%clk
00:39:05]} {[%emt 00:03:06]} 21. Qxd7 {[%clk 00:25:19]} {[%emt 00:03:47]} Qxe3+
{[%clk 00:39:01]} {[%emt 00:00:33]} 22. Kh1 {[%clk 00:25:46]} {[%emt 00:00:04]}
Qxb3 {[%clk 00:38:59]} {[%emt 00:00:31]} 23. Rxf5 {[%clk 00:25:30]} {[%emt
00:00:47]} h6 {[%clk 00:17:50]} {[%emt 00:21:39]} 24. Raf1 {[%clk 00:18:46]}
{[%emt 00:07:14]} Qxb2 {[%clk 00:13:43]} {[%emt 00:04:37]} 25. e6 {[%clk
00:13:00]} {[%emt 00:06:15]} Qe2 {[%clk 00:13:36]} {[%emt 00:00:38]} 26. R1f2
{[%clk 00:11:42]} {[%emt 00:01:48]} Qe1+ {[%clk 00:12:35]} {[%emt 00:01:31]} 27.
Rf1 {[%clk 00:11:57]} {[%emt 00:00:15]} Qe2 {[%clk 00:10:55]} {[%emt 00:02:09]}
28. R1f2 {[%clk 00:11:10]} {[%emt 00:01:18]} Qe1+ {[%clk 00:10:54]} {[%emt
00:00:30]} 29. Rf1 {[%clk 00:11:34]} {[%emt 00:00:06]} Qe2 {[%clk 00:11:17]}
{[%emt 00:00:07]} 30. R1f2 {[%emt 00:00:09]} 1/2-1/2

[Event "Sverigemastarklassen 2025"]
[Site "Uppsala, Sweden"]
[Date "2025.06.30"]
[Round "3.4"]
[White "Pantzar, Milton"]
[Black "Storme, Isak"]
[Result "1/2-1/2"]
[TimeControl "90 min for 40 move + 30 min with an increment of 30 sec starting move 1"]
[WhiteTitle "IM"]
[BlackTitle "IM"]
[WhiteFideId "1721003"]
[BlackFideId "1728113"]
[WhiteElo "2450"]
[BlackElo "2466"]

1. Nf3 {[%clk 01:30:53]} {[%emt 00:00:06]} d5 {[%clk 01:30:54]} {[%emt
00:00:06]} 2. g3 {[%clk 01:30:57]} {[%emt 00:00:26]} Nf6 {[%clk 01:30:34]}
{[%emt 00:00:50]} 3. Bg2 {[%clk 01:30:55]} {[%emt 00:00:32]} c5 {[%clk
01:30:15]} {[%emt 00:00:49]} 4. O-O {[%clk 01:28:45]} {[%emt 00:02:40]} g6
{[%clk 01:30:39]} {[%emt 00:00:06]} 5. d4 {[%clk 01:24:01]} {[%emt 00:05:13]}
cxd4 {[%clk 01:30:42]} {[%emt 00:00:28]} 6. Nxd4 {[%clk 01:24:19]} {[%emt
00:00:12]} Bg7 {[%clk 01:30:46]} {[%emt 00:00:25]} 7. c4 {[%clk 01:22:33]}
{[%emt 00:02:16]} O-O {[%clk 01:24:04]} {[%emt 00:07:12]} 8. cxd5 {[%clk
01:18:55]} {[%emt 00:04:08]} Nxd5 {[%clk 01:24:26]} {[%emt 00:00:08]} 9. Nc3
{[%clk 01:18:56]} {[%emt 00:00:29]} Nxc3 {[%clk 01:24:18]} {[%emt 00:00:39]} 10.
bxc3 {[%clk 01:19:20]} {[%emt 00:00:06]} Nd7 {[%clk 01:18:41]} {[%emt
00:06:05]} 11. Rb1 {[%clk 01:12:34]} {[%emt 00:07:17]} Nb6 {[%clk 01:17:36]}
{[%emt 00:01:35]} 12. Qb3 {[%clk 01:01:36]} {[%emt 00:11:29]} e5 {[%clk
01:14:20]} {[%emt 00:03:45]} 13. Nb5 {[%clk 01:00:24]} {[%emt 00:01:42]} Be6
{[%clk 01:13:10]} {[%emt 00:01:40]} 14. Qc2 {[%clk 00:56:56]} {[%emt 00:03:59]}
Nc4 {[%clk 01:04:41]} {[%emt 00:08:58]} 15. Na3 {[%clk 00:46:44]} {[%emt
00:10:43]} Nd6 {[%clk 00:51:14]} {[%emt 00:13:56]} 16. Nb5 {[%clk 00:41:55]}
{[%emt 00:05:19]} Nc4 {[%clk 00:51:00]} {[%emt 00:00:43]} 17. Na3 {[%clk
00:40:39]} {[%emt 00:01:47]} Nd6 {[%clk 00:49:46]} {[%emt 00:01:44]} 18. Nb5
{[%clk 00:37:28]} {[%emt 00:03:42]} 1/2-1/2

[Event "Sverigemastarklassen 2025"]
[Site "Uppsala, Sweden"]
[Date "2025.06.29"]
[Round "2.1"]
[White "Blomqvist, Erik"]
[Black "Sorensen, Hampus"]
[Result "1/2-1/2"]
[TimeControl "90 min for 40 move + 30 min with an increment of 30 sec starting move 1"]
[WhiteTitle "GM"]
[BlackTitle "IM"]
[WhiteFideId "1709437"]
[BlackFideId "8703884"]
[WhiteElo "2448"]
[BlackElo "2432"]

1. e4 {[%clk 01:30:55]} {[%emt 00:00:03]} c5 {[%clk 01:30:38]} {[%emt
00:00:23]} 2. Nc3 {[%clk 01:27:25]} {[%emt 00:04:01]} d6 {[%clk 01:30:21]}
{[%emt 00:00:47]} 3. Bb5+ {[%clk 01:27:36]} {[%emt 00:00:19]} Bd7 {[%clk
01:30:34]} {[%emt 00:00:16]} 4. Bxd7+ {[%clk 01:27:59]} {[%emt 00:00:07]} Qxd7
{[%clk 01:30:38]} {[%emt 00:00:26]} 5. d4 {[%clk 01:28:21]} {[%emt 00:00:08]}
cxd4 {[%clk 01:30:44]} {[%emt 00:00:24]} 6. Qxd4 {[%clk 01:28:46]} {[%emt
00:00:05]} Nc6 {[%clk 01:30:58]} {[%emt 00:00:16]} 7. Qd3 {[%clk 01:29:09]}
{[%emt 00:00:07]} g6 {[%clk 01:31:02]} {[%emt 00:00:25]} 8. Nf3 {[%clk
01:29:19]} {[%emt 00:00:20]} Bg7 {[%clk 01:31:10]} {[%emt 00:00:23]} 9. O-O
{[%clk 01:28:49]} {[%emt 00:00:59]} Nf6 {[%clk 01:31:21]} {[%emt 00:00:20]} 10.
Nd5 {[%clk 01:23:43]} {[%emt 00:05:36]} O-O {[%clk 01:29:53]} {[%emt 00:01:56]}
11. Bg5 {[%clk 01:23:57]} {[%emt 00:00:18]} Nxd5 {[%clk 01:29:16]} {[%emt
00:01:08]} 12. exd5 {[%clk 01:23:46]} {[%emt 00:00:40]} Ne5 {[%clk 01:29:28]}
{[%emt 00:00:18]} 13. Nxe5 {[%clk 01:24:04]} {[%emt 00:00:11]} Bxe5 {[%clk
01:29:47]} {[%emt 00:00:12]} 14. c3 {[%clk 01:23:58]} {[%emt 00:00:36]} Rac8
{[%clk 01:22:14]} {[%emt 00:08:03]} 15. a4 {[%clk 01:20:22]} {[%emt 00:04:06]}
a6 {[%clk 01:04:36]} {[%emt 00:18:09]} 16. Rfe1 {[%clk 01:17:53]} {[%emt
00:02:57]} Bf6 {[%clk 01:01:32]} {[%emt 00:03:34]} 17. Bh6 {[%clk 01:08:29]}
{[%emt 00:09:54]} Rfe8 {[%clk 01:00:53]} {[%emt 00:01:10]} 18. Re4 {[%clk
01:08:44]} {[%emt 00:00:15]} e5 {[%clk 00:48:33]} {[%emt 00:12:50]} 19. dxe6
{[%clk 01:09:02]} {[%emt 00:00:11]} Rxe6 {[%clk 00:48:44]} {[%emt 00:00:19]} 20.
Be3 {[%clk 00:50:32]} {[%emt 00:19:00]} Rxe4 {[%clk 00:45:11]} {[%emt
00:04:03]} 21. Qxe4 {[%clk 00:48:52]} {[%emt 00:02:11]} Qc6 {[%clk 00:45:26]}
{[%emt 00:00:15]} 22. Qb4 {[%clk 00:48:24]} {[%emt 00:00:58]} Re8 {[%clk
00:44:08]} {[%emt 00:01:46]} 23. a5 {[%clk 00:37:25]} {[%emt 00:11:31]} Re4
{[%clk 00:40:27]} {[%emt 00:04:10]} 24. Qb6 {[%clk 00:36:53]} {[%emt 00:01:02]}
Qd5 {[%clk 00:36:42]} {[%emt 00:04:16]} 25. h3 {[%clk 00:34:41]} {[%emt
00:02:42]} Re8 {[%clk 00:26:51]} {[%emt 00:10:21]} 26. Qc7 {[%clk 00:28:47]}
{[%emt 00:06:23]} Qc6 {[%clk 00:24:15]} {[%emt 00:03:07]} 27. Qxc6 {[%clk
00:24:26]} {[%emt 00:04:51]} bxc6 {[%clk 00:24:43]} {[%emt 00:00:02]} 28. Rd1
{[%clk 00:24:48]} {[%emt 00:00:07]} d5 {[%clk 00:24:31]} {[%emt 00:00:42]} 29.
Kf1 {[%clk 00:24:31]} {[%emt 00:00:47]} Rb8 {[%clk 00:22:16]} {[%emt 00:02:45]}
30. Bb6 {[%clk 00:24:56]} {[%emt 00:00:05]} Bd8 {[%clk 00:19:25]} {[%emt
00:03:21]} 31. Bxd8 {[%clk 00:25:20]} {[%emt 00:00:07]} Rxd8 {[%clk 00:19:53]}
{[%emt 00:00:02]} 32. Ke2 {[%clk 00:23:12]} {[%emt 00:02:37]} Kf8 {[%clk
00:20:10]} {[%emt 00:00:14]} 33. Kd3 {[%clk 00:22:48]} {[%emt 00:00:53]} Ke7
{[%clk 00:20:34]} {[%emt 00:00:07]} 34. b4 {[%clk 00:23:05]} {[%emt 00:00:13]}
Kd6 {[%clk 00:19:25]} {[%emt 00:01:39]} 35. Re1 {[%clk 00:23:21]} {[%emt
00:00:13]} Rc8 {[%clk 00:19:15]} {[%emt 00:00:40]} 36. g4 {[%clk 00:22:38]}
{[%emt 00:01:13]} Rf8 {[%clk 00:13:09]} {[%emt 00:06:36]} 37. Kd4 {[%clk
00:19:55]} {[%emt 00:03:13]} Rc8 {[%clk 00:13:01]} {[%emt 00:00:39]} 38. Kd3
{[%clk 00:16:28]} {[%emt 00:03:58]} Rf8 {[%clk 00:13:05]} {[%emt 00:00:25]} 39.
Kd4 {[%clk 00:16:51]} {[%emt 00:00:07]} Rc8 {[%clk 00:13:30]} {[%emt 00:00:04]}
40. Kd3 {[%clk 00:17:15]} {[%emt 00:00:06]} 1/2-1/2

[Event "Sverigemastarklassen 2025"]
[Site "Uppsala, Sweden"]
[Date "2025.06.29"]
[Round "2.2"]
[White "Galperin, Platon"]
[Black "Falkevall, Axel"]
[Result "1/2-1/2"]
[TimeControl "90 min for 40 move + 30 min with an increment of 30 sec starting move 1"]
[WhiteTitle "GM"]
[BlackTitle "FM"]
[WhiteFideId "14165414"]
[BlackFideId "1735560"]
[WhiteElo "2500"]
[BlackElo "2372"]

1. c4 {[%clk 01:26:44]} {[%emt 00:04:16]} c5 {[%clk 01:30:33]} {[%emt
00:00:28]} 2. Nc3 {[%clk 01:27:04]} {[%emt 00:00:10]} Nf6 {[%clk 01:30:47]}
{[%emt 00:00:15]} 3. g3 {[%clk 01:27:31]} {[%emt 00:00:04]} d5 {[%clk
01:31:10]} {[%emt 00:00:07]} 4. cxd5 {[%clk 01:27:57]} {[%emt 00:00:05]} Nxd5
{[%clk 01:31:36]} {[%emt 00:00:02]} 5. Bg2 {[%clk 01:28:23]} {[%emt 00:00:05]}
Nc7 {[%clk 01:32:02]} {[%emt 00:00:04]} 6. b3 {[%clk 01:28:49]} {[%emt
00:00:04]} e5 {[%clk 01:29:34]} {[%emt 00:02:57]} 7. Bb2 {[%clk 01:29:14]}
{[%emt 00:00:06]} Be7 {[%clk 01:27:27]} {[%emt 00:02:36]} 8. Rc1 {[%clk
01:29:32]} {[%emt 00:00:12]} f6 {[%clk 01:20:52]} {[%emt 00:07:06]} 9. Nh3
{[%clk 01:29:51]} {[%emt 00:00:11]} Nc6 {[%clk 01:06:52]} {[%emt 00:14:30]} 10.
f4 {[%clk 01:30:08]} {[%emt 00:00:12]} O-O {[%clk 01:05:21]} {[%emt 00:02:00]}
11. O-O {[%clk 01:30:06]} {[%emt 00:00:33]} Rb8 {[%clk 01:03:09]} {[%emt
00:02:43]} 12. fxe5 {[%clk 01:28:49]} {[%emt 00:01:47]} Nxe5 {[%clk 01:01:24]}
{[%emt 00:02:14]} 13. Nf4 {[%clk 01:29:12]} {[%emt 00:00:06]} b6 {[%clk
00:57:09]} {[%emt 00:04:46]} 14. Qc2 {[%clk 01:08:54]} {[%emt 00:20:48]} Kh8
{[%clk 00:52:22]} {[%emt 00:05:16]} 15. Be4 {[%clk 01:04:57]} {[%emt 00:04:27]}
f5 {[%clk 00:44:24]} {[%emt 00:08:28]} 16. Ncd5 {[%clk 01:03:55]} {[%emt
00:01:32]} Bd6 {[%clk 00:41:03]} {[%emt 00:03:52]} 17. Bg2 {[%clk 01:02:50]}
{[%emt 00:01:35]} Nxd5 {[%clk 00:39:04]} {[%emt 00:02:28]} 18. Nxd5 {[%clk
00:58:46]} {[%emt 00:04:34]} Qg5 {[%clk 00:35:44]} {[%emt 00:03:50]} 19. e4
{[%clk 00:41:26]} {[%emt 00:17:50]} Ba6 {[%clk 00:32:52]} {[%emt 00:03:22]} 20.
Bxe5 {[%clk 00:39:15]} {[%emt 00:02:41]} Bxe5 {[%clk 00:32:43]} {[%emt
00:00:39]} 21. Rxf5 {[%clk 00:39:40]} {[%emt 00:00:05]} Rxf5 {[%clk 00:32:19]}
{[%emt 00:00:55]} 22. exf5 {[%clk 00:40:02]} {[%emt 00:00:08]} Re8 {[%clk
00:29:01]} {[%emt 00:03:47]} 23. Kh1 {[%clk 00:37:12]} {[%emt 00:03:19]} Bb8
{[%clk 00:20:30]} {[%emt 00:09:02]} 24. Ne3 {[%clk 00:32:14]} {[%emt 00:05:27]}
Rd8 {[%clk 00:14:53]} {[%emt 00:06:08]} 25. Qe4 {[%clk 00:29:27]} {[%emt
00:03:17]} h5 {[%clk 00:13:53]} {[%emt 00:01:30]} 26. Bf1 {[%clk 00:27:52]}
{[%emt 00:02:05]} Bxf1 {[%clk 00:07:18]} {[%emt 00:07:06]} 27. Rxf1 {[%clk
00:26:15]} {[%emt 00:02:07]} Rxd2 {[%clk 00:06:55]} {[%emt 00:00:53]} 28. Rf3
{[%clk 00:25:57]} {[%emt 00:00:47]} Bd6 {[%clk 00:05:01]} {[%emt 00:02:25]} 29.
f6 {[%clk 00:24:31]} {[%emt 00:01:56]} gxf6 {[%clk 00:05:08]} {[%emt 00:00:22]}
30. Qe8+ {[%clk 00:21:22]} {[%emt 00:03:39]} Kh7 {[%clk 00:05:33]} {[%emt
00:00:05]} 31. Qf7+ {[%clk 00:18:41]} {[%emt 00:03:11]} Kh8 {[%clk 00:06:01]}
{[%emt 00:00:02]} 32. Qe8+ {[%clk 00:14:24]} {[%emt 00:04:48]} Kh7 {[%clk
00:06:26]} {[%emt 00:00:05]} 33. Nc4 {[%clk 00:09:13]} {[%emt 00:05:41]} Rxa2
{[%clk 00:05:14]} {[%emt 00:01:42]} 34. Qf7+ {[%clk 00:09:10]} {[%emt
00:00:30]} Kh8 {[%clk 00:05:34]} {[%emt 00:00:11]} 35. Re3 {[%clk 00:01:52]}
{[%emt 00:07:49]} Ra1+ {[%clk 00:05:10]} {[%emt 00:00:54]} 36. Kg2 {[%clk
00:02:18]} {[%emt 00:00:04]} Ra2+ {[%clk 00:05:33]} {[%emt 00:00:07]} 37. Kh1
{[%clk 00:02:40]} {[%emt 00:00:07]} Ra1+ {[%clk 00:05:06]} {[%emt 00:00:58]} 38.
Kg2 {[%clk 00:03:09]} {[%emt 00:00:02]} Ra2+ {[%clk 00:05:30]} {[%emt
00:00:05]} 39. Kh1 {[%clk 00:03:35]} {[%emt 00:00:04]} Ra1+ {[%emt 00:00:08]}
1/2-1/2

[Event "Sverigemastarklassen 2025"]
[Site "Uppsala, Sweden"]
[Date "2025.06.29"]
[Round "2.3"]
[White "Storme, Isak"]
[Black "Lokander, Martin"]
[Result "1/2-1/2"]
[TimeControl "90 min for 40 move + 30 min with an increment of 30 sec starting move 1"]
[WhiteTitle "IM"]
[BlackTitle "IM"]
[WhiteFideId "1728113"]
[BlackFideId "1709569"]
[WhiteElo "2466"]
[BlackElo "2446"]

1. c4 {[%clk 01:30:58]} e6 {[%clk 01:29:35]} {[%emt 00:01:26]} 2. Nc3 {[%clk
01:31:10]} {[%emt 00:00:17]} d5 {[%clk 01:29:54]} {[%emt 00:00:12]} 3. d4
{[%clk 01:30:58]} {[%emt 00:00:41]} c5 {[%clk 01:29:23]} {[%emt 00:01:03]} 4.
e3 {[%clk 01:25:59]} {[%emt 00:05:27]} dxc4 {[%clk 01:27:29]} {[%emt 00:02:24]}
5. Bxc4 {[%clk 01:25:55]} {[%emt 00:00:35]} Nf6 {[%clk 01:27:41]} {[%emt
00:00:18]} 6. Nf3 {[%clk 01:25:41]} {[%emt 00:00:43]} a6 {[%clk 01:27:55]}
{[%emt 00:00:18]} 7. a4 {[%clk 01:17:40]} {[%emt 00:08:30]} Nc6 {[%clk
01:26:59]} {[%emt 00:01:26]} 8. O-O {[%clk 01:17:31]} {[%emt 00:00:38]} Be7
{[%clk 01:27:10]} {[%emt 00:00:19]} 9. Qe2 {[%clk 01:14:55]} {[%emt 00:03:06]}
cxd4 {[%clk 01:24:33]} {[%emt 00:03:08]} 10. Rd1 {[%clk 01:14:31]} {[%emt
00:00:53]} e5 {[%clk 01:24:15]} {[%emt 00:00:49]} 11. exd4 {[%clk 01:10:00]}
{[%emt 00:05:00]} exd4 {[%clk 01:24:24]} {[%emt 00:00:22]} 12. Nxd4 {[%clk
01:07:23]} {[%emt 00:03:07]} Nxd4 {[%clk 01:24:30]} {[%emt 00:00:24]} 13. Qe5
{[%clk 01:04:29]} {[%emt 00:03:23]} Qd6 {[%clk 01:23:48]} {[%emt 00:01:13]} 14.
Qxd4 {[%clk 00:58:11]} {[%emt 00:06:47]} Qxd4 {[%clk 01:23:53]} {[%emt
00:00:26]} 15. Rxd4 {[%clk 00:58:36]} {[%emt 00:00:05]} Be6 {[%clk 01:23:58]}
{[%emt 00:00:25]} 16. Bxe6 {[%clk 00:57:17]} {[%emt 00:01:49]} fxe6 {[%clk
01:21:45]} {[%emt 00:02:43]} 17. Be3 {[%clk 00:49:29]} {[%emt 00:08:17]} Kf7
{[%clk 01:15:48]} {[%emt 00:06:28]} 18. Rad1 {[%clk 00:45:27]} {[%emt
00:04:32]} Rhd8 {[%clk 01:13:33]} {[%emt 00:02:46]} 19. Kf1 {[%clk 00:43:22]}
{[%emt 00:02:33]} Rxd4 {[%clk 01:08:38]} {[%emt 00:05:26]} 20. Rxd4 {[%clk
00:43:44]} {[%emt 00:00:07]} Rd8 {[%clk 01:08:35]} {[%emt 00:00:33]} 21. Ke2
{[%clk 00:30:38]} {[%emt 00:13:36]} Rxd4 {[%clk 00:58:25]} {[%emt 00:10:41]} 22.
Bxd4 {[%clk 00:31:01]} {[%emt 00:00:07]} Bb4 {[%clk 00:58:03]} {[%emt
00:00:52]} 23. Kd3 {[%clk 00:29:10]} {[%emt 00:02:19]} Bxc3 {[%clk 00:58:06]}
{[%emt 00:00:28]} 24. bxc3 {[%clk 00:23:53]} {[%emt 00:05:48]} Nd7 {[%clk
00:56:30]} {[%emt 00:02:06]} 25. Ke4 {[%clk 00:21:40]} {[%emt 00:02:42]} g6
{[%clk 00:56:16]} {[%emt 00:00:44]} 26. g4 {[%clk 00:19:14]} {[%emt 00:02:55]}
Ke7 {[%clk 00:49:13]} {[%emt 00:07:34]} 27. Kf4 {[%clk 00:16:18]} {[%emt
00:03:24]} Kf7 {[%clk 00:46:27]} {[%emt 00:03:18]} 28. Ke4 {[%clk 00:16:06]}
{[%emt 00:00:42]} Ke7 {[%clk 00:46:50]} {[%emt 00:00:08]} 29. Kf4 {[%clk
00:16:24]} {[%emt 00:00:12]} Kf7 {[%clk 00:47:16]} {[%emt 00:00:04]} 30. Ke4
{[%clk 00:16:47]} {[%emt 00:00:06]} 1/2-1/2